bitfinex/quotes_BTCUSD_20241107
["timestamp","ask_amount","ask_price","bid_price","bid_amount"]
[1730989703083,0.0024,74879.0,74878.0,0.53962767]
[1730989703957,0.0004,74879.0,74878.0,0.53962767]
[1730989704177,0.0014,74879.0,74878.0,0.39494102]
[1730989704362,0.0014,74879.0,74878.0,0.44852159]
[1730989704791,0.0024,74879.0,74878.0,0.45452159]
[1730989705459,0.0024,74879.0,74878.0,0.44452159]
[1730989705669,0.003232,74879.0,74878.0,0.44452159]
[1730989706290,0.003232,74879.0,74878.0,0.39094102]
[1730989706460,0.003232,74879.0,74878.0,0.29094102]
[1730989710120,0.003232,74879.0,74878.0,0.1537]
[1730989710317,0.003232,74879.0,74878.0,0.1041]
[1730989710537,0.003232,74879.0,74878.0,0.022]
[1730989710947,0.003232,74879.0,74878.0,0.024]
[1730989715015,0.003232,74879.0,74878.0,0.28414102]
[1730989715452,0.003232,74879.0,74878.0,0.28914102]
[1730989719575,0.003232,74879.0,74878.0,0.29181143]
[1730989719928,0.003232,74879.0,74878.0,0.28681143]
[1730989721024,0.003232,74879.0,74878.0,0.28414102]
[1730989723030,0.003232,74879.0,74878.0,0.28681139]
[1730989723240,0.003232,74879.0,74878.0,0.28414102]
[1730989724376,0.003232,74879.0,74878.0,0.28681139]
[1730989726286,0.003232,74879.0,74878.0,0.28414102]
[1730989726485,0.003232,74879.0,74878.0,0.28914102]
[1730989729713,0.003232,74879.0,74878.0,0.28414102]
[1730989729919,0.003232,74879.0,74878.0,0.28914102]
[1730989730157,0.003232,74879.0,74878.0,0.17771425]
[1730989731121,0.003232,74879.0,74878.0,0.1569]
[1730989731739,0.003232,74879.0,74878.0,0.17271425]
[1730989732195,0.003232,74879.0,74878.0,0.1519]
[1730989732602,0.003232,74879.0,74878.0,0.15457055]
[1730989734342,0.003232,74879.0,74878.0,0.30181157]
[1730989734563,0.003232,74879.0,74878.0,0.28414102]
[1730989735196,0.003232,74879.0,74878.0,0.28914102]
[1730989739313,0.003232,74879.0,74878.0,0.28414102]
[1730989739915,0.003232,74879.0,74878.0,0.28914102]
[1730989740147,0.003232,74879.0,74878.0,0.29181148]
[1730989741209,0.003232,74879.0,74878.0,0.30430299]
[1730989741403,0.003232,74879.0,74878.0,0.30163253]
[1730989742811,0.003232,74879.0,74878.0,0.29663253]
[1730989743014,0.003232,74879.0,74878.0,0.28414102]
[1730989743239,0.003232,74879.0,74878.0,0.28914102]
[1730989743675,0.003232,74879.0,74878.0,0.28414102]
[1730989744533,0.003232,74879.0,74878.0,0.28914102]
[1730989744745,0.003232,74879.0,74878.0,0.28414102]
[1730989744956,0.003232,74879.0,74878.0,0.029]
[1730989746880,0.003232,74879.0,74878.0,0.03667055]
[1730989747087,0.003232,74879.0,74878.0,0.04917524]
[1730989747306,0.003232,74879.0,74878.0,0.18141626]
[1730989747516,0.003232,74879.0,74878.0,0.30781626]
[1730989747726,0.003232,74879.0,74878.0,0.30514571]
[1730989748366,0.003232,74879.0,74878.0,0.30514361]
[1730989748575,0.003232,74879.0,74878.0,0.31514361]
[1730989750032,0.003232,74879.0,74878.0,0.30264102]
[1730989750242,0.003232,74879.0,74878.0,0.40264102]
[1730989751131,0.003232,74879.0,74878.0,0.41514261]
[1730989751342,0.003232,74879.0,74878.0,0.46996126]
[1730989753308,0.003232,74879.0,74878.0,0.36496126]
[1730989753763,0.003232,74879.0,74878.0,0.30567261]
[1730989753976,0.003232,74879.0,74878.0,0.25857261]
[1730989754403,0.003232,74879.0,74878.0,0.26357261]
[1730989755905,0.003232,74879.0,74878.0,0.26624309]
[1730989756861,0.003232,74879.0,74878.0,0.26357261]
[1730989757093,0.19433493,74892.0,74891.0,0.005]
[1730989757290,0.19433493,74892.0,74891.0,0.01]
[1730989757502,0.03998057,74894.0,74891.0,0.01]
[1730989757766,0.03998057,74894.0,74893.0,0.005]
[1730989758831,0.03998057,74894.0,74893.0,0.015]
[1730989759482,0.03998057,74897.0,74896.0,0.005]
[1730989759901,0.03998057,74898.0,74896.0,0.005]
[1730989760107,0.03998057,74898.0,74897.0,0.01]
[1730989762387,0.05098057,74898.0,74897.0,0.011]
[1730989763168,0.06198057,74898.0,74897.0,0.012]
[1730989763777,0.06198057,74898.0,74897.0,0.0115533]
[1730989764501,0.06281257,74898.0,74897.0,0.0115533]
[1730989765334,0.06283277,74898.0,74897.0,0.0115533]
[1730989765961,0.06283277,74898.0,74897.0,0.0135533]
[1730989766189,0.06283277,74898.0,74897.0,0.0185533]
[1730989766411,0.06283277,74898.0,74897.0,0.0165533]
[1730989766627,0.06265077,74898.0,74897.0,0.0165533]
[1730989767246,0.02265,74898.0,74897.0,0.0165533]
[1730989767667,0.02265,74898.0,74897.0,0.0185533]
[1730989768504,0.02265,74898.0,74897.0,0.0986533]
[1730989770180,0.02265,74898.0,74897.0,0.0966533]
[1730989771019,0.01165,74898.0,74897.0,0.0956533]
[1730989771236,0.000832,74898.0,74897.0,0.0976533]
[1730989771444,0.000832,74898.0,74897.0,0.1006533]
[1730989772293,0.000832,74898.0,74897.0,0.1026533]
[1730989772496,0.000832,74898.0,74897.0,0.0996533]
[1730989772894,0.000832,74898.0,74897.0,0.1026533]
[1730989774575,0.000832,74898.0,74897.0,0.23489432]
[1730989775438,0.000832,74898.0,74897.0,0.1026533]
[1730989776536,0.000832,74898.0,74897.0,0.0205533]
[1730989776744,0.000832,74898.0,74897.0,0.0225533]
[1730989777187,0.000832,74898.0,74897.0,0.0205533]
[1730989777821,0.000832,74898.0,74897.0,0.0175533]
[1730989778028,0.000832,74898.0,74897.0,0.0145533]
[1730989778449,0.000832,74898.0,74897.0,0.0095533]
[1730989778651,0.001832,74898.0,74897.0,0.0095533]
[1730989778855,0.001832,74898.0,74897.0,0.0115533]
[1730989779294,0.001832,74898.0,74897.0,0.005]
[1730989779509,0.000832,74898.0,74897.0,0.005]
[1730989779729,0.003832,74898.0,74897.0,0.005]
[1730989779942,0.007832,74898.0,74897.0,0.005]
[1730989780643,0.007832,74898.0,74897.0,0.0095533]
[1730989781272,0.04781009,74898.0,74897.0,0.0095533]
[1730989781494,0.007832,74898.0,74897.0,0.0095533]
[1730989781709,0.007832,74898.0,74897.0,0.02954682]
[1730989782770,0.007832,74898.0,74897.0,0.0095533]
[1730989783639,0.007832,74898.0,74897.0,0.02954783]
[1730989783859,0.04781009,74898.0,74897.0,0.0095533]
[1730989784341,0.007832,74898.0,74897.0,0.0095533]
[1730989784989,0.023,74897.0,74892.0,0.006664]
[1730989785209,0.10107097,74893.0,74892.0,0.006664]
[1730989785423,0.12407097,74893.0,74892.0,0.006664]
[1730989785640,0.023,74893.0,74892.0,0.006664]
[1730989786496,0.023,74893.0,74892.0,0.007664]
[1730989787353,0.06088954,74893.0,74892.0,0.002664]
[1730989787478,0.12086467,74893.0,74892.0,0.002664]
[1730989787688,0.28844546,74893.0,74892.0,0.003664]
[1730989787871,0.20848927,74893.0,74892.0,0.003664]
[1730989788096,0.20848927,74893.0,74892.0,0.002664]
[1730989788542,0.20848927,74893.0,74892.0,0.003664]
[1730989788749,0.20848927,74893.0,74892.0,0.002664]
[1730989788966,0.20848927,74893.0,74892.0,0.001664]
[1730989789432,0.21347872,74893.0,74892.0,0.001664]
[1730989789637,0.21947872,74893.0,74892.0,0.002664]
[1730989790266,0.07188954,74893.0,74892.0,0.002664]
[1730989790490,0.13185439,74893.0,74892.0,0.007664]
[1730989790718,0.13185238,74893.0,74892.0,0.007664]
[1730989790959,0.08896284,74893.0,74892.0,0.007664]
[1730989791169,0.17656631,74893.0,74892.0,0.007664]
[1730989791385,0.12685394,74893.0,74892.0,0.007664]
[1730989791842,0.0949644,74893.0,74892.0,0.008664]
[1730989792085,0.035,74893.0,74892.0,0.008664]
[1730989792747,0.07497387,74893.0,74892.0,0.008664]
[1730989793838,0.035,74893.0,74892.0,0.008664]
[1730989795165,0.07497025,74893.0,74892.0,0.008664]
[1730989799174,0.07496734,74893.0,74892.0,0.008664]
[1730989800298,0.012,74893.0,74892.0,0.008664]
[1730989800538,0.012,74893.0,74892.0,0.0202173]
[1730989800766,0.012,74893.0,74892.0,0.1476173]
[1730989801219,0.11307097,74893.0,74892.0,0.1456173]
[1730989801449,0.11307097,74893.0,74892.0,0.1406173]
[1730989801684,0.10707097,74893.0,74892.0,0.1396173]
[1730989801888,0.10107097,74893.0,74892.0,0.1386173]
[1730989802111,0.000832,74898.0,74897.0,0.0929533]
[1730989802972,0.000832,74898.0,74897.0,0.0949533]
[1730989803194,0.000832,74898.0,74897.0,0.0929533]
[1730989804488,0.000832,74898.0,74897.0,0.27349432]
[1730989804716,0.000832,74898.0,74897.0,0.27616415]
[1730989804946,0.000832,74898.0,74897.0,0.27549432]
[1730989805179,0.000832,74898.0,74897.0,0.28149432]
[1730989805419,0.000832,74898.0,74897.0,0.14492319]
[1730989805641,0.000832,74898.0,74897.0,0.0989533]
[1730989806507,0.000832,74898.0,74897.0,0.27969432]
[1730989806719,0.000832,74898.0,74897.0,0.28236448]
[1730989806941,0.000832,74898.0,74897.0,0.28169432]
[1730989808470,0.000832,74898.0,74897.0,0.28669432]
[1730989810266,0.000832,74898.0,74897.0,0.28936404]
[1730989810701,0.000832,74898.0,74897.0,0.29936404]
[1730989810916,0.000832,74898.0,74897.0,0.29669432]
[1730989811593,0.000832,74898.0,74897.0,0.29169432]
[1730989811801,0.000832,74898.0,74897.0,0.28369432]
[1730989812014,0.000832,74898.0,74897.0,0.28069432]
[1730989812224,0.001832,74898.0,74897.0,0.28869432]
[1730989812435,0.002832,74898.0,74897.0,0.29569432]
[1730989813064,0.001832,74898.0,74897.0,0.28769432]
[1730989813476,0.002832,74898.0,74897.0,0.29736413]
[1730989813682,0.002832,74898.0,74897.0,0.28769432]
[1730989813890,0.002832,74898.0,74897.0,0.29036413]
[1730989813891,0.001832,74898.0,74897.0,0.29036413]
[1730989814297,0.001832,74898.0,74897.0,0.30036413]
[1730989814506,0.001832,74898.0,74897.0,0.29769432]
[1730989814719,0.002832,74898.0,74897.0,0.30469432]
[1730989815356,0.002832,74898.0,74897.0,0.40469432]
[1730989816667,0.002832,74898.0,74897.0,0.50576529]
[1730989817099,0.002832,74898.0,74897.0,0.40469432]
[1730989817314,0.002832,74898.0,74897.0,0.50576529]
[1730989819182,0.002832,74898.0,74897.0,0.51820789]
[1730989820111,0.002832,74898.0,74897.0,0.31713692]
[1730989823131,0.002832,74898.0,74897.0,0.41714078]
[1730989823538,0.002832,74898.0,74897.0,0.41880278]
[1730989823753,0.002832,74898.0,74897.0,0.51987375]
[1730989826836,0.001832,74898.0,74897.0,0.51487375]
[1730989827054,0.000832,74898.0,74897.0,0.49342729]
[1730989827255,0.000832,74898.0,74897.0,0.50042729]
[1730989827902,0.000832,74898.0,74897.0,0.50742729]
[1730989830357,0.000832,74898.0,74897.0,0.50942729]
[1730989830778,0.000832,74898.0,74897.0,0.40835632]
[1730989830963,0.00156,74902.0,74901.0,0.0295533]
[1730989831162,0.00156,74902.0,74901.0,0.49720554]
[1730989831366,0.00156,74902.0,74901.0,0.59453626]
[1730989831577,0.00156,74902.0,74901.0,0.62121626]
[1730989832843,0.00156,74902.0,74901.0,1.02174626]
[1730989833227,0.00156,74902.0,74901.0,1.03474626]
[1730989833442,0.000756,74906.0,74905.0,0.36037524]
[1730989833657,0.000756,74906.0,74905.0,0.62211626]
[1730989833897,0.000756,74906.0,74905.0,1.02262626]
[1730989834362,0.20034593,74917.0,74911.0,0.36212427]
[1730989834594,0.20034593,74917.0,74911.0,0.39529432]
[1730989834794,0.20034593,74917.0,74911.0,0.79577432]
[1730989835002,0.000756,74936.0,74911.0,0.79577432]
[1730989835622,0.001331,74912.0,74911.0,0.79577432]
[1730989836064,0.001331,74912.0,74911.0,0.80277432]
[1730989836485,0.001331,74912.0,74911.0,0.80877432]
[1730989837083,0.001331,74912.0,74911.0,0.80277432]
[1730989837303,0.001331,74912.0,74911.0,0.80877432]
[1730989839867,0.001331,74912.0,74911.0,0.69677432]
[1730989840087,0.001331,74912.0,74911.0,0.56727432]
[1730989840299,0.001331,74912.0,74911.0,0.56227432]
[1730989840503,0.001331,74912.0,74911.0,0.56727432]
[1730989840713,0.001331,74912.0,74911.0,0.57227432]
[1730989840927,0.001331,74912.0,74911.0,0.57127432]
[1730989841674,0.001331,74912.0,74911.0,0.56427432]
[1730989841883,0.001331,74912.0,74911.0,0.57127432]
[1730989842144,0.001331,74912.0,74911.0,0.56427432]
[1730989842549,0.001331,74912.0,74911.0,0.57127432]
[1730989842751,0.001331,74912.0,74911.0,0.57727432]
[1730989843183,0.001331,74912.0,74911.0,0.4280333]
[1730989843615,0.001331,74912.0,74911.0,0.4240333]
[1730989844020,0.001331,74912.0,74911.0,0.4280333]
[1730989844453,0.001331,74912.0,74911.0,0.4150333]
[1730989844664,0.001331,74912.0,74911.0,0.4220333]
[1730989845143,0.001331,74912.0,74911.0,0.4150333]
[1730989845356,0.001331,74912.0,74911.0,0.4210333]
[1730989845798,0.001331,74912.0,74911.0,0.4150333]
[1730989846013,0.001331,74912.0,74911.0,0.55227432]
[1730989846172,0.001331,74912.0,74911.0,0.63447432]
[1730989846374,0.001331,74912.0,74911.0,0.62947432]
[1730989846862,0.001331,74912.0,74911.0,0.64247432]
[1730989847029,0.001331,74912.0,74911.0,0.70013836]
[1730989847390,0.001331,74912.0,74911.0,0.69413836]
[1730989847584,0.0202,74922.0,74918.0,0.0195533]
[1730989847796,0.0202,74922.0,74918.0,0.15179432]
[1730989848019,0.0202,74922.0,74918.0,0.16179432]
[1730989848644,0.0202,74922.0,74918.0,0.16446344]
[1730989848892,0.0202,74922.0,74918.0,0.16379432]
[1730989849084,0.0202,74922.0,74918.0,0.15879432]
[1730989849289,0.0202,74922.0,74918.0,0.16846327]
[1730989849487,0.0202,74922.0,74918.0,0.24406327]
[1730989849742,0.0202,74922.0,74918.0,0.25006327]
[1730989849942,0.000225,74919.0,74918.0,0.25006327]
[1730989850225,0.000225,74919.0,74918.0,0.39785]
[1730989850435,0.000225,74919.0,74918.0,0.53935]
[1730989850645,0.000225,74919.0,74918.0,0.94579]
[1730989850875,0.000225,74919.0,74918.0,0.95079]
[1730989851083,0.000225,74919.0,74918.0,0.93779]
[1730989851491,0.000225,74919.0,74918.0,0.94579]
[1730989852132,0.000225,74919.0,74918.0,0.95279]
[1730989852330,0.000225,74919.0,74918.0,0.94379]
[1730989852804,0.000225,74919.0,74918.0,0.94479]
[1730989853022,0.000225,74919.0,74918.0,0.95079]
[1730989853473,0.000225,74919.0,74918.0,0.95279]
[1730989855263,0.001256,74925.0,74924.0,0.55626466]
[1730989855484,0.001256,74925.0,74924.0,0.53705]
[1730989855693,0.001256,74925.0,74924.0,0.93646]
[1730989856586,0.001256,74925.0,74924.0,0.94446]
[1730989857008,0.001256,74925.0,74924.0,0.94246]
[1730989857228,0.001256,74925.0,74924.0,0.99720949]
[1730989857909,0.001256,74925.0,74924.0,1.00620949]
[1730989858784,0.001256,74925.0,74924.0,0.99320949]
[1730989859001,0.001256,74925.0,74924.0,1.00020949]
[1730989859211,0.001256,74925.0,74924.0,0.99920949]
[1730989859637,0.001256,74925.0,74924.0,1.00020949]
[1730989860091,0.001256,74925.0,74924.0,1.00620949]
[1730989860534,0.001256,74925.0,74924.0,0.99820949]
[1730989860752,0.001256,74925.0,74924.0,0.99120949]
[1730989860970,0.001256,74925.0,74924.0,0.99920949]
[1730989861252,0.001256,74925.0,74924.0,1.00420949]
[1730989861466,0.001256,74925.0,74924.0,0.99720949]
[1730989861685,0.001256,74925.0,74924.0,1.00420949]
[1730989862102,0.001256,74925.0,74924.0,0.99120949]
[1730989862317,0.001256,74925.0,74924.0,0.99920949]
[1730989862532,0.001256,74925.0,74924.0,1.00420949]
[1730989862740,0.20034593,74948.0,74947.0,0.017]
[1730989862956,0.20034593,74948.0,74947.0,0.150427]
[1730989863170,0.20034593,74959.0,74958.0,0.133408]
[1730989863377,0.023,74966.0,74965.0,0.133395]
[1730989864242,0.02366399,74977.0,74956.0,0.005]
[1730989864460,0.02366399,74977.0,74952.0,0.20534593]
[1730989864461,0.0004,74979.0,74973.0,0.005]
[1730989864678,0.33258695,74978.0,74968.0,0.005]
[1730989864892,0.33258695,74978.0,74965.0,0.001]
[1730989864893,0.15045568,74969.0,74965.0,0.001]
[1730989865165,0.15045568,74969.0,74966.0,0.20034593]
[1730989865382,0.15045568,74969.0,74965.0,0.001]
[1730989865383,0.2826967,74969.0,74965.0,0.001]
[1730989865597,0.2826967,74969.0,74956.0,0.005]
[1730989865805,0.0315,74968.0,74961.0,0.20034593]
[1730989866012,0.0315,74968.0,74957.0,0.005]
[1730989866454,0.023,74967.0,74956.0,0.005]
[1730989866674,0.023,74967.0,74965.0,0.001]
[1730989866675,0.04904727,74967.0,74965.0,0.001]
[1730989867105,0.04904727,74967.0,74956.0,0.005]
[1730989867326,0.04904727,74967.0,74953.0,0.20034593]
[1730989867327,0.0315,74961.0,74953.0,0.20034593]
[1730989867563,0.023,74957.0,74953.0,0.20034593]
[1730989867769,0.13224102,74956.0,74953.0,0.20034593]
[1730989867980,0.023,74955.0,74942.0,0.20034593]
[1730989868246,0.0285,74950.0,74942.0,0.20034593]
[1730989868451,0.023,74938.0,74922.0,0.005]
[1730989868673,0.023,74936.0,74921.0,0.005]
[1730989868914,0.3111967,74937.0,74919.0,0.20034593]
[1730989868915,0.15045568,74922.0,74919.0,0.20034593]
[1730989869138,0.026,74921.0,74919.0,0.20034593]
[1730989869358,0.026,74921.0,74914.0,0.01]
[1730989869359,0.05541358,74921.0,74914.0,0.01]
[1730989869579,0.05541358,74921.0,74918.0,0.20034593]
[1730989869785,0.05541358,74921.0,74915.0,0.20534593]
[1730989870000,0.05541358,74921.0,74914.0,0.005]
[1730989870001,0.05541358,74921.0,74914.0,0.01]
[1730989870221,0.023,74915.0,74911.0,0.001664]
[1730989870639,0.023,74913.0,74911.0,0.001664]
[1730989871082,0.05046954,74912.0,74911.0,0.001664]
[1730989871736,0.05046954,74912.0,74911.0,0.002664]
[1730989871982,0.05046954,74912.0,74911.0,0.001664]
[1730989872190,0.05046954,74912.0,74911.0,0.002664]
[1730989872858,0.56665524,74912.0,74911.0,0.006664]
[1730989873069,0.63210266,74912.0,74911.0,0.006664]
[1730989873291,0.48164698,74912.0,74911.0,0.006664]
[1730989873495,0.28271056,74912.0,74911.0,0.006664]
[1730989873702,0.25524102,74912.0,74911.0,0.002664]
[1730989874178,0.25524102,74912.0,74911.0,0.001664]
[1730989874179,0.26324102,74912.0,74911.0,0.001664]
[1730989874402,0.26324102,74912.0,74911.0,0.002664]
[1730989874611,0.26324102,74912.0,74911.0,0.001664]
[1730989874820,0.031,74912.0,74911.0,0.001664]
[1730989875026,0.031,74912.0,74911.0,0.002664]
[1730989875250,0.031,74912.0,74911.0,0.001664]
[1730989875460,0.023,74914.0,74911.0,0.001664]
[1730989875679,0.2047946,74916.0,74911.0,0.001664]
[1730989875680,0.15045568,74916.0,74911.0,0.003664]
[1730989875912,0.009,74912.0,74911.0,0.003664]
[1730989876335,0.15045568,74916.0,74911.0,0.002664]
[1730989876575,0.009,74912.0,74911.0,0.003664]
[1730989876981,0.15045568,74916.0,74911.0,0.006664]
[1730989877206,0.136462,74928.0,74911.0,0.006664]
[1730989877207,0.15045568,74922.0,74912.0,0.01]
[1730989877864,0.05390369,74927.0,74912.0,0.01]
[1730989877865,0.15045568,74916.0,74912.0,0.01]
[1730989879423,0.1,74929.0,74918.0,0.005]
[1730989879424,0.15045568,74922.0,74918.0,0.005]
[1730989879643,0.15045568,74922.0,74918.0,0.01]
[1730989879847,0.15045568,74922.0,74914.0,0.005]
[1730989879848,0.15045568,74928.0,74919.0,0.005]
[1730989880702,0.15045568,74928.0,74922.0,0.005]
[1730989881686,0.15045568,74928.0,74920.0,0.005]
[1730989881687,0.15045568,74935.0,74927.0,0.005]
[1730989881886,0.20117693,74934.0,74927.0,0.005]
[1730989882089,0.20117693,74934.0,74924.0,0.005]
[1730989882090,0.004,74928.0,74924.0,0.005]
[1730989882496,0.15045568,74929.0,74924.0,0.005]
[1730989882740,0.000831,74934.0,74931.0,0.005]
[1730989883178,0.000831,74934.0,74931.0,0.01]
[1730989884036,0.000831,74934.0,74931.0,0.001]
[1730989884037,0.15045568,74933.0,74931.0,0.001]
[1730989884264,0.15045568,74933.0,74926.0,0.005]
[1730989884265,0.15045568,74933.0,74930.0,0.005]
[1730989885140,0.003831,74934.0,74931.0,0.005]
[1730989885351,0.003831,74934.0,74933.0,0.01]
[1730989885755,0.000831,74934.0,74933.0,0.01]
[1730989886333,0.000831,74934.0,74933.0,0.012]
[1730989886817,0.003831,74934.0,74933.0,0.012]
[1730989887094,0.003831,74934.0,74933.0,0.01]
[1730989889307,0.000831,74934.0,74933.0,0.01]
[1730989889537,0.000831,74934.0,74933.0,0.015]
[1730989889761,0.000831,74934.0,74933.0,0.28800969]
[1730989889969,0.000831,74934.0,74933.0,0.28700969]
[1730989890183,0.000831,74934.0,74933.0,0.28434102]
[1730989890391,0.000831,74934.0,74933.0,0.29134102]
[1730989890608,0.000831,74934.0,74933.0,0.28434102]
[1730989890812,0.000831,74934.0,74933.0,0.28734102]
[1730989891032,0.000831,74934.0,74933.0,0.2900095]
[1730989892149,0.000831,74934.0,74933.0,0.2930095]
[1730989892372,0.000831,74934.0,74933.0,0.29034102]
[1730989892592,0.000831,74934.0,74933.0,0.28734102]
[1730989893037,0.000831,74934.0,74933.0,0.29234102]
[1730989893271,0.000831,74934.0,74933.0,0.28934102]
[1730989893494,0.000831,74934.0,74933.0,0.29134102]
[1730989893721,0.001831,74934.0,74933.0,0.29834102]
[1730989893943,0.001831,74934.0,74933.0,0.29134102]
[1730989894152,0.001831,74934.0,74933.0,0.5607967]
[1730989894381,0.20034593,74953.0,74952.0,0.0979]
[1730989894586,0.20034593,74953.0,74952.0,0.23014102]
[1730989894797,0.000831,74975.0,74960.0,0.002]
[1730989895023,0.000831,74975.0,74960.0,0.007]
[1730989895252,0.000831,74975.0,74969.0,0.002]
[1730989895490,0.000831,74975.0,74968.0,0.005]
[1730989896420,0.000831,74975.0,74971.0,0.002]
[1730989897541,0.000831,74975.0,74974.0,0.01]
[1730989897745,0.000831,74975.0,74974.0,0.012]
[1730989898095,0.000831,74975.0,74974.0,0.01]
[1730989898520,0.000831,74975.0,74974.0,0.1334]
[1730989899368,0.000831,74975.0,74974.0,0.1364]
[1730989899684,0.000831,74975.0,74974.0,0.1384]
[1730989900208,0.000831,74975.0,74974.0,0.1394]
[1730989900414,0.000831,74975.0,74974.0,0.016]
[1730989900626,0.000831,74975.0,74974.0,0.009]
[1730989901529,0.000831,74975.0,74974.0,0.001]
[1730989902412,0.000831,74975.0,74974.0,0.018]
[1730989902647,0.000831,74975.0,74974.0,0.017]
[1730989903521,0.000831,74975.0,74974.0,0.015]
[1730989903742,0.000831,74975.0,74974.0,0.02]
[1730989903967,0.000831,74975.0,74974.0,0.017]
[1730989904185,0.000831,74975.0,74974.0,0.015]
[1730989904404,0.000831,74975.0,74974.0,0.02]
[1730989905080,0.001831,74975.0,74974.0,0.027]
[1730989905484,0.000831,74975.0,74974.0,0.02]
[1730989905693,0.000831,74975.0,74974.0,0.015]
[1730989905873,0.000831,74975.0,74974.0,0.018]
[1730989906150,0.000831,74975.0,74974.0,0.019]
[1730989907014,0.000831,74975.0,74974.0,0.014]
[1730989907244,0.000831,74975.0,74974.0,0.004]
[1730989907874,0.000831,74975.0,74974.0,0.001]
[1730989908298,0.0004,74999.0,74994.0,0.005]
[1730989908516,0.0004,74999.0,74998.0,0.0993]
[1730989908710,0.0004,74999.0,74998.0,0.232636]
[1730989908851,0.0004,74999.0,74998.0,0.133336]
[1730989909059,0.0004,74999.0,74998.0,0.138336]
[1730989909256,0.0004,74999.0,74998.0,0.133336]
[1730989909684,0.0004,74999.0,74998.0,0.138336]
[1730989909937,0.0014,74999.0,74998.0,0.146336]
[1730989910143,0.0014,74999.0,74998.0,0.158336]
[1730989910371,0.0014,74999.0,74998.0,0.165336]
[1730989910569,0.0014,74999.0,74998.0,0.158336]
[1730989911006,0.0004,74999.0,74998.0,0.157336]
[1730989911422,0.0014,74999.0,74998.0,0.163336]
[1730989911634,0.0014,74999.0,74998.0,0.165336]
[1730989911847,0.0004,74999.0,74998.0,0.152336]
[1730989912108,0.0004,74999.0,74998.0,0.157336]
[1730989912324,0.0014,74999.0,74998.0,0.158336]
[1730989912736,0.0004,74999.0,74998.0,0.157336]
[1730989912938,0.0004,74999.0,74998.0,0.150336]
[1730989913362,0.0014,74999.0,74998.0,0.165336]
[1730989913567,0.0014,74999.0,74998.0,0.158336]
[1730989913971,0.0014,74999.0,74998.0,0.165336]
[1730989914183,0.0014,74999.0,74998.0,0.156336]
[1730989914424,0.0014,74999.0,74998.0,0.29057702]
[1730989914656,0.0004,74999.0,74998.0,0.28257702]
[1730989914877,0.0014,74999.0,74998.0,0.158336]
[1730989915302,0.0004,74999.0,74998.0,0.150336]
[1730989915525,0.0004,74999.0,74998.0,0.157336]
[1730989915732,0.0004,74999.0,74998.0,0.158336]
[1730989915733,0.0014,74999.0,74998.0,0.158336]
[1730989916072,0.0004,74999.0,74998.0,0.157336]
[1730989916276,0.0004,74999.0,74998.0,0.150336]
[1730989916486,0.0014,74999.0,74998.0,0.158336]
[1730989916704,0.002231,74999.0,74998.0,0.165336]
[1730989916960,0.002231,74999.0,74998.0,0.158336]
[1730989917200,0.002231,74999.0,74998.0,0.146336]
[1730989917387,0.002231,74999.0,74998.0,0.153336]
[1730989917921,0.002231,74999.0,74998.0,0.00501295]
[1730989918138,0.001231,74999.0,74998.0,0.00501295]
[1730989918557,0.002231,74999.0,74998.0,0.013]
[1730989918970,0.001231,74999.0,74998.0,0.012]
[1730989919391,0.002231,74999.0,74998.0,0.02]
[1730989920585,0.002231,74999.0,74998.0,0.022]
[1730989921046,0.002231,74999.0,74998.0,0.015]
[1730989921613,0.002231,74999.0,74998.0,0.02]
[1730989922430,0.002231,74999.0,74998.0,0.16490783]
[1730989922635,0.002231,74999.0,74998.0,0.20804102]
[1730989922911,0.002231,74999.0,74998.0,0.0758]
[1730989923122,0.002231,74999.0,74998.0,0.0708]
[1730989923321,0.002231,74999.0,74998.0,0.0728]
[1730989924944,0.002231,74999.0,74998.0,0.0778]
[1730989925144,0.002231,74999.0,74998.0,0.10265216]
[1730989925862,0.002231,74999.0,74998.0,0.33427444]
[1730989926167,0.002231,74999.0,74998.0,0.1563]
[1730989926398,0.002231,74999.0,74998.0,0.4439967]
[1730989927045,0.002231,74999.0,74998.0,0.4389967]
[1730989927254,0.001256,75000.0,74998.0,0.4389967]
[1730989927470,0.001256,75000.0,74999.0,0.14424102]
[1730989927690,0.001256,75000.0,74999.0,0.15424102]
[1730989928360,0.001256,75000.0,74999.0,0.25924102]
[1730989928597,8e-05,75006.0,75005.0,0.022]
[1730989928802,8e-05,75006.0,75005.0,0.30736275]
[1730989929020,8e-05,75006.0,75005.0,0.3046967]
[1730989929232,8e-05,75006.0,75005.0,0.3868967]
[1730989929475,8e-05,75006.0,75005.0,0.4356967]
[1730989930117,0.0203376,75017.0,75005.0,0.4356967]
[1730989930118,0.0203376,75017.0,75008.0,0.021]
[1730989930343,0.0203376,75017.0,75008.0,0.14424102]
[1730989930545,0.0203376,75017.0,75008.0,0.23244102]
[1730989931637,0.0203376,75017.0,75008.0,0.23844102]
[1730989931789,0.0203376,75017.0,75008.0,0.24444102]
[1730989932209,0.0203376,75017.0,75008.0,0.2471069]
[1730989933621,0.0203376,75017.0,75008.0,0.24444102]
[1730989936508,0.0203376,75017.0,75008.0,0.23944102]
[1730989936721,0.0203376,75017.0,75008.0,0.029]
[1730989936954,0.0203376,75017.0,75008.0,0.022]
[1730989937167,0.0203376,75017.0,75008.0,0.012]
[1730989937859,0.0203376,75017.0,75008.0,0.017]
[1730989938274,0.0203376,75017.0,75008.0,0.012]
[1730989938696,0.023,75016.0,75008.0,0.012]
[1730989940324,0.15524102,74996.0,74981.0,0.01]
[1730989940536,0.15524102,74996.0,74985.0,0.005]
[1730989940783,0.023,74994.0,74985.0,0.007]
[1730989941463,0.023,74994.0,74981.0,0.005]
[1730989941676,0.023,74992.0,74977.0,0.01]
[1730989941927,0.13224102,74993.0,74985.0,0.006]